fUSD/lending_fUSD_20250313
["ID","MTS","AMOUNT","RATE_DAILY","PERIOD"]
[356053350,1741863048364,-328.56,0.00026849,2]
[356053351,1741863048374,-3500.0,0.000269,9]
[356053352,1741863048383,-403.31,0.00027123,2]
[356053353,1741863048393,-150.0,0.0002714,2]
[356053354,1741863048403,-15382.0936807,0.0002727,3]
[356053355,1741863048412,-15382.0936807,0.0002728,3]
[356053356,1741863048422,-151.51,0.0002728,2]
[356053357,1741863048432,-76910.4684036,0.0002729,3]
[356053358,1741863048442,-151.0,0.0002729,7]
[356053359,1741863048451,-151.0,0.0002729,7]
[356053360,1741863048461,-500.0,0.00027299,2]
[356053361,1741863048472,-250000.0,0.000273,30]
[356053362,1741863048484,-151.0,0.000273,7]
[356053363,1741863048494,-151.0,0.000273,7]
[356053364,1741863048504,-201.4244,0.000273,7]
[356053365,1741863048514,-201.4244,0.000273,7]
[356053366,1741863048523,-152.152776,0.000273,7]
[356053367,1741863048533,-152.152776,0.000273,7]
[356053368,1741863048543,-188.67803,0.000273,7]
[356053369,1741863048552,-188.67803,0.000273,7]
[356053370,1741863048562,-151.0,0.000273,7]
[356053371,1741863048572,-151.0,0.000273,7]
[356053372,1741863048581,-151.0,0.000273,7]
[356053373,1741863048591,-602.899655,0.000273,7]
[356053374,1741863048601,-602.899655,0.000273,7]
[356053375,1741863048611,-151.0,0.000273,7]
[356053376,1741863048620,-151.0,0.000273,7]
[356053377,1741863048630,-221.38224222,0.00027397,60]
[356053378,1741863048640,-900.0,0.00027397,2]
[356053379,1741863048649,-900.0,0.00027397,2]
[356053380,1741863048659,-900.0,0.00027397,2]
[356053381,1741863048668,-900.0,0.00027397,2]
[356053382,1741863048678,-900.0,0.00027397,2]
[356053383,1741863048687,-900.0,0.00027397,2]
[356053384,1741863048698,-900.0,0.00027397,2]
[356053385,1741863048708,-900.0,0.00027397,2]
[356053386,1741863048718,-900.0,0.00027397,2]
[356053387,1741863048728,-900.0,0.00027397,2]
[356053388,1741863048739,-1237.65265865,0.000275,4]
[356053389,1741863048749,-150.0,0.00027511,120]
[356053390,1741863048758,-150.0,0.00027529,120]
[356053391,1741863048767,-500.0,0.00027573,2]
[356053392,1741863048778,-2833.17568688,0.00027787,2]
[356053393,1741863048788,-1475.0,0.00027837,2]
[356053394,1741863048799,-500.0,0.00027847,2]
[356053395,1741863048808,-3000.0,0.000279,2]
[356053396,1741863048819,-150.0,0.00027903,120]
[356053397,1741863048828,-51730.97349111,0.00027997,31]
[356053398,1741863048838,-1519.646,0.00028,3]
[356053399,1741863048848,-171.8298062,0.00028,2]
[356053400,1741863048858,-25370.0096189,0.00028,120]
[356053401,1741863048868,-1000.0,0.00028,120]
[356053402,1741863048879,-2810.55511029,0.00028,2]
[356053403,1741863048889,-344.41237218,0.00028048,4]
[356053404,1741863048899,-500.0,0.00028121,2]
[356053405,1741863048909,-1475.0,0.00028124,2]
[356053406,1741863048919,-1247.04,0.00028244,2]
[356053407,1741863048928,-500.0,0.00028264,7]
[356053408,1741863048938,-500.0,0.00028264,7]
[356053409,1741863048948,-500.0,0.00028395,2]
[356053410,1741863048957,-1475.0,0.00028411,2]
[356053411,1741863048968,-150.0,0.00028425,120]
[356053412,1741863048978,-14125.0,0.000285,7]
[356053413,1741863048989,-4300.0,0.000285,10]
[356053414,1741863048999,-50941.57788469,0.000286,2]
[356053415,1741863049010,-151.0,0.000286,7]
[356053416,1741863049020,-151.0,0.000286,7]
[356053417,1741863049030,-201.4244,0.000286,7]
[356053418,1741863049040,-201.4244,0.000286,7]
[356053419,1741863049051,-152.152776,0.000286,7]
[356053420,1741863049061,-152.152776,0.000286,7]
[356053421,1741863049070,-188.67803,0.000286,7]
[356053422,1741863049080,-188.67803,0.000286,7]
[356053423,1741863049090,-151.0,0.000286,7]
[356053424,1741863049101,-798.23,0.000286,31]
[356053425,1741863049111,-798.23,0.000286,31]
[356053426,1741863049122,-798.23,0.000286,31]
[356053427,1741863049132,-798.23,0.000286,31]
[356053428,1741863049142,-798.23,0.000286,31]
[356053429,1741863049152,-798.23,0.000286,31]
[356053430,1741863049161,-798.23,0.000286,31]
[356053431,1741863049171,-798.23,0.000286,31]
[356053432,1741863049181,-798.23,0.000286,31]
[356053433,1741863049191,-798.23,0.000286,31]
[356053434,1741863049201,-798.23,0.000286,31]
[356053435,1741863049212,-798.23,0.000286,31]
[356053436,1741863049222,-798.23,0.000286,31]
[356053437,1741863049235,-798.23,0.000286,31]
[356053438,1741863049245,-798.23,0.000286,31]
[356053439,1741863049256,-798.23,0.000286,31]
[356053440,1741863049265,-151.0,0.000286,7]
[356053441,1741863049277,-264.605212,0.000286,7]
[356053442,1741863049287,-800.0,0.000286,10]
[356053443,1741863049297,-602.899655,0.000286,7]
[356053444,1741863049309,-602.899655,0.000286,7]
[356053445,1741863049321,-151.0,0.000286,7]
[356053446,1741863049331,-151.0,0.000286,7]
[356053447,1741863049341,-500.0,0.00028669,2]
[356053448,1741863049351,-150.0,0.00028681,120]
[356053449,1741863049361,-13669.28491829,0.00028686,2]
[356053450,1741863049371,-13669.28491828,0.00028687,2]
[356053451,1741863049381,-153.92610008,0.00028687,2]
[356053452,1741863049391,-218.05458802,0.00028687,2]
[356053453,1741863049401,-172.87308124,0.00028687,2]
[356053454,1741863049411,-3482.64271918,0.00028687,2]
[356053455,1741863049422,-13669.28491828,0.00028687,2]
[356053456,1741863049434,-1475.0,0.00028698,2]
[356053457,1741863049444,-500.0,0.00028698,30]
[356053458,1741863049454,-500.0,0.00028698,30]
[356053459,1741863049464,-500.0,0.00028698,30]
[356053460,1741863049474,-500.0,0.00028698,30]
[356053461,1741863049485,-500.0,0.00028698,30]
[356053462,1741863049496,-500.0,0.00028698,30]
[356053463,1741863049505,-500.0,0.00028698,30]
[356053464,1741863049515,-500.0,0.00028698,30]
[356053465,1741863049525,-498.90281079,0.00028698,30]
[356053466,1741863049536,-249025.3309389,0.00028699,30]
[356053467,1741863049548,-222.654301,0.00028699,7]
[356053468,1741863049558,-151.0,0.00028699,7]
[356053469,1741863049568,-201.4244,0.00028699,7]
[356053470,1741863049578,-201.4244,0.00028699,7]
[356053471,1741863049588,-152.152776,0.00028699,7]
[356053472,1741863049597,-152.152776,0.00028699,7]
[356053473,1741863049607,-188.67803,0.00028699,7]
[356053474,1741863049617,-188.67803,0.00028699,7]
[356053475,1741863049626,-151.0,0.00028699,7]
[356053476,1741863049636,-151.0,0.00028699,7]
[356053477,1741863049646,-602.899655,0.00028699,7]
[356053478,1741863049656,-602.899655,0.00028699,7]
[356053479,1741863049666,-151.0,0.00028699,7]
[356053480,1741863049675,-151.0,0.00028699,7]
[356053481,1741863049685,-106348.5025739,0.000287,2]
[356053482,1741863049695,-5000.0,0.000287,5]
[356053483,1741863049704,-55566.16164685,0.000287,2]
[356053484,1741863050427,-2841.29997,0.000287,2]
[356053485,1741863050439,-3753.44258756,0.000287,2]
[356053486,1741863050494,-151.0,0.000247,7]
[356053487,1741863050503,-151.0,0.000248,7]
[356053488,1741863050513,-203.861451,0.0002489,7]
[356053489,1741863050522,-69.1385365,0.000287,2]
[356053490,1741863050533,-8323.0,0.000287,2]
[356053491,1741863050544,-77.27235809,0.000287,2]
[356053492,1741863050553,-39135.06339922,0.000287,15]
[356053493,1741863050563,-201.4244,0.000287,7]
[356053494,1741863050572,-201.4244,0.000287,7]
[356053495,1741863050581,-152.152776,0.000287,7]
[356053496,1741863050591,-152.152776,0.000287,7]
[356053497,1741863050600,-188.67803,0.000287,7]
[356053498,1741863050610,-188.67803,0.000287,7]
[356053499,1741863050619,-151.0,0.000287,7]
[356053500,1741863050628,-151.0,0.000287,7]
[356053501,1741863050638,-800.0,0.000287,10]
[356053502,1741863050648,-602.899655,0.000287,7]
[356053503,1741863050658,-602.899655,0.000287,7]
[356053504,1741863050667,-4242.017765,0.000287,2]
[356053505,1741863050676,-151.0,0.000287,7]
[356053506,1741863050686,-2058.02510175,0.00028714,2]
[356053507,1741863050695,-201.4244,0.00028767,7]
[356053508,1741863050705,-201.4244,0.00028767,7]
[356053509,1741863050714,-152.152776,0.00028767,7]
[356053510,1741863050723,-152.152776,0.00028767,7]
[356053511,1741863050732,-201.4244,0.00028768,7]
[356053512,1741863050744,-201.4244,0.00028768,7]
[356053513,1741863050753,-201.4244,0.00028768,7]
[356053514,1741863050763,-201.424399,0.00028768,7]
[356053515,1741863050772,-152.152776,0.00028768,7]
[356053516,1741863050782,-152.152776,0.00028768,7]
[356053517,1741863050791,-152.152776,0.00028768,7]
[356053518,1741863050801,-152.152775,0.00028768,7]
[356053519,1741863050811,-11546.1983347,0.00028768,2]
[356053520,1741863050820,-9792.3544514,0.00028768,2]
[356053521,1741863050829,-4047.33,0.00028786,2]
[356053522,1741863050838,-188.67803,0.00028786,7]
[356053523,1741863050847,-188.67803,0.00028786,7]
[356053524,1741863050858,-286.542632,0.00028786,7]
[356053525,1741863050867,-151.0,0.00028786,7]
[356053526,1741863050877,-602.899655,0.00028786,7]
[356053527,1741863050887,-602.899655,0.00028786,7]
[356053528,1741863050896,-294.400064,0.00028786,7]
[356053529,1741863050906,-19292.92309434,0.00028786,30]
[356053530,1741863050919,-1717.4,0.00028786,30]
[356053531,1741863050929,-1370.6082435,0.00028786,30]
[356053532,1741863050941,-24843.91666086,0.00028786,30]
[356053552,1741864231724,-493.78059,0.00010859,2]
[356053553,1741864231740,-56.21941,0.00010859,2]
[356053554,1741864231752,-250.0,0.00010996,2]
[356053555,1741864231764,-150.0,0.00011868,2]
[356053556,1741864231777,-212.28,0.00011917,2]
[356053557,1741864231789,-550.0,0.00013,2]
[356053558,1741864231801,-200.0,0.00013699,2]
[356053559,1741864231813,-150.0,0.00014868,2]
[356053560,1741864231826,-600.0,0.00015,2]
[356053561,1741864231838,-560.91570382,0.00015659,2]
[356053562,1741864231849,-2041.83,0.00015659,2]
[356053563,1741864231861,-150.99,0.00015659,2]
[356053564,1741864231873,-421.9026617,0.00016897,2]
[356053565,1741864231885,-114.54999758,0.000169,2]
[356053566,1741864231900,-87.34691052,0.000169,2]
[356053567,1741864231912,-212.28,0.00017875,2]
[356053568,1741864231924,-201.89690782,0.00018257,2]
[356053569,1741864231936,-201.89690782,0.00019614,2]
[356053570,1741864231949,-200.41201474,0.00020971,2]
[356053571,1741864231964,-1.48489308,0.00020971,2]
[356053572,1741864231976,-201.89690782,0.00022329,3]
[356053573,1741864231989,-771.96,0.00022927,2]
[356053574,1741864232001,-57.08907772,0.00023686,3]
[356053575,1741864232016,-144.8078301,0.00023686,3]
[356053576,1741864232028,-500.0,0.0002388,2]
[356053577,1741864232040,-2449.24736278,0.00024178,2]
[356053578,1741864232078,-4896.99749901,0.00024178,2]
[356053579,1741864232091,-1789.567,0.00024599,7]
[356053580,1741864232103,-195.0,0.00024599,2]
[356053581,1741864232114,-14128.95682055,0.000246,2]
[356053582,1741864232139,-2115.64726431,0.000246,2]
[356053583,1741864232153,-52954.20788401,0.000246,2]
[356053584,1741864232167,-6207.13453113,0.000246,2]
[356053585,1741864232179,-209.59422095,0.00024639,120]
[356053586,1741864232191,-152.0,0.00024639,120]
[356053587,1741864232203,-301.02,0.00024824,2]
[356053588,1741864232215,-665.03654509,0.00024824,2]
[356053589,1741864232229,-1104.558,0.00024824,2]
[356053592,1741864237623,-276.212,0.00024328,2]
[356053593,1741864237632,-201.33625113,0.00024824,2]
[356053594,1741864237645,-29.06920378,0.00024824,2]
[356053595,1741864237656,-241.94,0.00024879,30]
[356053596,1741864237665,-150.0,0.00024947,7]
[356053597,1741864237675,-5454.42937966,0.00024947,2]
[356053598,1741864237686,-16403.8,0.00024947,2]
[356053599,1741864237698,-2041.77062034,0.00024947,2]
[356053600,1741864237707,-4249.56635999,0.00024966,2]
[356053601,1741864237783,-304.28076881,0.00024966,2]
[356053602,1741864237839,-734.44,0.00024966,2]
[356053611,1741864239721,-1604.78996952,0.00024966,2]
[356053612,1741864239730,-500.0,0.00024976,7]
[356053613,1741864239740,-201.89690782,0.00025043,4]
[356053614,1741864239750,-771.96,0.00025191,2]
[356053615,1741864239759,-1000.0,0.000253,2]
[356053616,1741864239769,-150.0,0.00025642,2]
[356053617,1741864239780,-250.0,0.0002579,2]
[356053618,1741864239789,-2751.0,0.00025792,2]
[356053619,1741864239798,-175.33,0.00025792,2]
[356053620,1741864239807,-298.41,0.00025792,2]
[356053621,1741864239818,-500.0,0.00026072,7]
[356053622,1741864239827,-300.0,0.00026077,2]
[356053623,1741864239836,-61.63510784,0.00026221,2]
[356053624,1741864239850,-101.34489216,0.00026221,2]
[356053625,1741864239860,-201.89690782,0.000264,4]
[356053626,1741864239870,-164.64,0.00026617,2]
[356053627,1741864239879,-500.0,0.0002662,7]
[356053628,1741864239889,-900.0,0.00027397,2]
[356053629,1741864239898,-900.0,0.00027397,2]
[356053630,1741864239908,-900.0,0.00027397,2]
[356053631,1741864239918,-132.11820002,0.00027397,2]
[356053632,1741864239930,-363.43668418,0.00027397,2]
[356053633,1741864239939,-771.96,0.00027455,2]
[356053634,1741864239949,-500.0,0.00027716,7]
[356053635,1741864239958,-201.89690782,0.00027757,4]
[356053636,1741864239968,-891.06770656,0.00027821,2]
[356053637,1741864239979,-519.93229344,0.00027821,2]
[356053638,1741864239990,-1199.63770654,0.000279,2]
[356053639,1741864240001,-1800.36229346,0.000279,2]
[356053640,1741864240012,-24.36428284,0.00028,2]
[356053641,1741864240023,-1975.63571716,0.00028,2]
[356053642,1741864240032,-1411.0,0.00028108,2]
[356053643,1741864240042,-500.0,0.00028264,7]
[356053644,1741864240052,-1361.69264185,0.00028395,2]
[356053652,1741864242783,-49.30735815,0.00028395,2]
[356053653,1741864242793,-10269.94740643,0.000285,2]
[356053654,1741864242804,-200.0,0.00028556,2]
[356053655,1741864242814,-50000.0,0.000286,2]
[356053656,1741864242825,-657.17,0.000286,31]
[356053657,1741864242835,-657.17,0.000286,31]
[356053658,1741864242844,-657.17,0.000286,31]
[356053659,1741864242854,-657.17,0.000286,31]
[356053660,1741864242863,-657.17,0.000286,31]
[356053661,1741864242873,-657.17,0.000286,31]
[356053662,1741864242882,-657.17,0.000286,31]
[356053663,1741864242892,-657.17,0.000286,31]
[356053664,1741864242901,-657.17,0.000286,31]
[356053665,1741864242911,-657.17,0.000286,31]
[356053666,1741864242921,-657.17,0.000286,31]
[356053667,1741864242930,-657.17,0.000286,31]
[356053668,1741864242939,-657.17,0.000286,31]
[356053669,1741864242948,-657.17,0.000286,31]
[356053670,1741864242957,-657.17,0.000286,31]
[356053671,1741864242966,-657.17,0.000286,31]
[356053672,1741864242977,-151.24326242,0.00028673,5]
[356053673,1741864242987,-1411.0,0.00028682,2]
[356053675,1741864242998,-153.92610008,0.00028685,2]
[356053676,1741864243008,-2644.29730768,0.00028685,2]
[356053677,1741864243017,-70140.556,0.00028686,3]
[356053678,1741864243027,-221.0,0.00028688,2]
[356053679,1741864243037,-19953.85485106,0.00028775,3]
[356053685,1741864246216,-600.55,0.00028775,3]
[356053687,1741864246228,-626.49162665,0.00028775,3]
[356053688,1741864246241,-1140.02549801,0.00028775,3]
[356053690,1741864246252,-58564.07007558,0.00028775,3]
[356053691,1741864246260,-11011.29992442,0.00028775,3]
[356053692,1741864341916,-150.0,0.00024976,7]
[356053723,1741865431868,-369.1027,9.9e-05,2]
[356053724,1741865431880,-113.95617267,0.0001,2]
[356053725,1741865431980,-295.95831041,0.0001,2]
[356053726,1741865431992,-4014.05193758,0.0001,2]
[356053727,1741865432038,-644.49718546,0.0001,2]
[356053728,1741865432051,-706.29087696,0.0001,2]
[356053729,1741865432092,-361.94112733,0.0001,2]
[356053730,1741865432104,-491.0513765,0.0001,2]
[356053731,1741865432115,-881.66184815,0.0001,2]
[356053732,1741865432126,-13762.95105387,0.0001,2]
[356053733,1741865432147,-900.0,0.0001,2]
[356053734,1741865432159,-658.53,0.0001,2]
[356053735,1741865432204,-1080.62568899,0.0001,2]
[356053738,1741865437833,-1704.575,0.0001,2]
[356053739,1741865437844,-33846.02151742,0.0001,2]
[356053740,1741865437941,-312.08860483,0.0001,2]
[356053747,1741865439888,-8325.87078815,0.0001,2]
[356053748,1741865439899,-2529.15936468,0.0001,2]
[356053749,1741865439910,-1358.22391178,0.0001,2]
[356053750,1741865440151,-258.8204571,0.0001,2]
[356053751,1741865440163,-1180.82964998,0.0001,2]
[356053752,1741865440205,-893.30142658,0.0001,2]
[356053769,1741865443038,-1024.04291605,0.0001,2]
[356053770,1741865443051,-927.77,0.0001,2]
[356053771,1741865443064,-2157.04558531,0.0001,2]
[356053772,1741865445326,-325.64971644,0.0001,2]
[356053777,1741865445932,-154709.16732984,0.0001,2]
[356053778,1741865445942,-151.0,0.00013747,2]
[356053779,1741865445952,-1000.0,0.00023803,2]
[356053780,1741865445962,-201.89690782,0.000239,3]
[356053781,1741865445974,-350.0,0.00024976,7]
[356053782,1741865445983,-500.0,0.00024976,7]
[356053783,1741865445993,-1881.99999918,0.00025,7]
[356053784,1741865446003,-191.58704895,0.00025,2]
[356053785,1741865446013,-201.89690782,0.00025532,4]
[356053786,1741865446024,-656.16,0.00025584,2]
[356053787,1741865446033,-500.0,0.0002662,7]
[356053788,1741865446043,-500.0,0.0002662,7]
[356053789,1741865446054,-1000.0,0.00026779,2]
[356053790,1741865446064,-918.93,0.00026849,2]
[356053791,1741865446074,-1000.0,0.00027018,2]
[356053792,1741865446084,-201.89690782,0.00027163,4]
[356053793,1741865446094,-2000.0,0.00027195,2]
[356053794,1741865446103,-221.77,0.00027203,30]
[356053795,1741865446113,-23900.0,0.00027206,2]
[356053796,1741865446122,-248.67,0.00027459,2]
[356053797,1741865446131,-2751.0,0.00027477,2]
[356053798,1741865446142,-250.0,0.00027569,2]
[356053799,1741865446151,-200.0,0.00027608,2]
[356053800,1741865446160,-150.0,0.0002764,2]
[356053801,1741865446170,-165.37,0.00027664,120]
[356053802,1741865446179,-175.33,0.00027783,2]
[356053803,1741865446189,-656.16,0.00027848,2]
[356053804,1741865446199,-3000.0,0.000279,2]
[356053805,1741865446208,-400.0,0.000281,10]
[356053806,1741865446218,-316.4269963,0.00028114,4]
[356053807,1741865446228,-500.0,0.00028192,2]
[356053808,1741865446238,-900.0,0.000282,10]
[356053809,1741865446248,-500.0,0.00028264,7]
[356053810,1741865446257,-600.0,0.00028264,7]
[356053811,1741865446267,-1400.0,0.000283,10]
[356053812,1741865446277,-1900.0,0.000284,10]
[356053813,1741865446286,-176.07,0.00028406,2]
[356053814,1741865446295,-2400.0,0.000285,10]
[356053815,1741865446305,-200.0,0.00028556,2]
[356053816,1741865446315,-1000.0,0.00028569,2]
[356053817,1741865446325,-150.0,0.00028577,2]
[356053818,1741865446334,-500.0,0.00028586,2]
[356053819,1741865446343,-325.07422281,0.000286,30]
[356053820,1741865446352,-565.48,0.000286,31]
[356053821,1741865446362,-565.48,0.000286,31]
[356053823,1741865446371,-565.48,0.000286,31]
[356053825,1741865446380,-565.48,0.000286,31]
[356053827,1741865446391,-565.48,0.000286,31]
[356053828,1741865446400,-565.48,0.000286,31]
[356053829,1741865446409,-565.48,0.000286,31]
[356053830,1741865446418,-565.48,0.000286,31]
[356053831,1741865446428,-565.48,0.000286,31]
[356053832,1741865446437,-565.48,0.000286,31]
[356053833,1741865446446,-565.48,0.000286,31]
[356053834,1741865446456,-565.48,0.000286,31]
[356053835,1741865446465,-565.48,0.000286,31]
[356053836,1741865446475,-565.48,0.000286,31]
[356053837,1741865446484,-565.48,0.000286,31]
[356053838,1741865446494,-565.48,0.000286,31]
[356053839,1741865446503,-400.0,0.000286,10]
[356053841,1741865446513,-2468.01082052,0.000286,2]
[356053843,1741865446522,-1000.0,0.00028627,2]
[356053844,1741865446532,-150.0,0.00028656,2]
[356053845,1741865446541,-26464.9530714,0.0002868,3]
[356053846,1741865446550,-151.51,0.0002868,2]
[356053847,1741865446559,-150.0,0.00028685,2]
[356053848,1741865446569,-221.0,0.00028686,2]
[356053849,1741865446579,-1431.654,0.00028686,20]
[356053850,1741865446588,-161.53965,0.00028688,42]
[356053851,1741865446598,-303.02505586,0.0002869,2]
[356053852,1741865446607,-97601.33946062,0.0002869,2]
[356053853,1741865446617,-17947.62915844,0.0002869,3]
[356053855,1741865447158,-1709.81883512,0.0002869,3]
[356053856,1741865447170,-853.8,0.0002869,3]
[356053857,1741865447181,-947.58891751,0.0002869,3]
[356053858,1741865447193,-900.48,0.0002869,3]
[356053859,1741865447205,-745.59745834,0.0002869,3]
[356053860,1741865447216,-3360.03870199,0.0002869,3]
[356053861,1741865447225,-8271.16129801,0.0002869,3]
[356053924,1741866632075,-4510.2185,9.9e-05,2]
[356053925,1741866632085,-3675.2015,9.9e-05,2]
[356053926,1741866632094,-3053.12305192,0.0002488,7]
[356053927,1741866632103,-201.89690782,0.000249,4]
[356053928,1741866632112,-672.66,0.00025446,2]
[356053929,1741866632121,-201.89690782,0.00026775,4]
[356053930,1741866632130,-312.13,0.00026849,2]
[356053931,1741866632139,-165.07,0.00027147,2]
[356053932,1741866632148,-1598.98,0.0002715,2]
[356053933,1741866632156,-1000.0,0.00027186,2]
[356053934,1741866632166,-155.91,0.00027195,2]
[356053935,1741866632174,-13456.83286172,0.00027202,2]
[356053936,1741866632187,-7441.85600017,0.00027202,2]
[356053937,1741866632199,-299.62394189,0.00027202,2]
[356053938,1741866632287,-2701.68719622,0.00027202,2]
[356053939,1741866632297,-1828.10176132,0.00027202,2]
[356053940,1741866632394,-7056.85428368,0.00027202,2]
[356053941,1741866632408,-1115.033955,0.00027202,2]
[356053942,1741866632419,-1251.4,0.00027226,2]
[356053943,1741866632430,-169.23,0.00027261,2]
[356053944,1741866632439,-155.91,0.00027292,2]
[356053945,1741866632449,-1517.10770041,0.00027294,2]
[356053953,1741866638228,-1233.89229959,0.00027294,2]
[356053954,1741866638265,-207.22,0.00027304,2]
[356053955,1741866638281,-150.0,0.0002738,2]
[356053956,1741866638290,-155.91,0.00027389,2]
[356053957,1741866638300,-250.0,0.00027396,2]
[356053958,1741866638310,-200.0,0.00027416,2]
[356053959,1741866638321,-247.78,0.00027444,120]
[356053960,1741866638334,-155.91,0.00027487,2]
[356053961,1741866638344,-155.91,0.00027584,2]
[356053962,1741866638353,-155.91,0.00027681,2]
[356053963,1741866638363,-1500.0,0.00027684,2]
[356053964,1741866638374,-150.0,0.00027709,2]
[356053965,1741866638383,-672.66,0.0002771,2]
[356053966,1741866638393,-1000.0,0.0002771,2]
[356053967,1741866638403,-155.91,0.00027778,2]
[356053968,1741866638414,-572.12451269,0.00027837,2]
[356053969,1741866638427,-775.87548731,0.00027837,2]
[356053970,1741866638438,-155.91,0.00027875,2]
[356053971,1741866638448,-1284.97985269,0.000279,2]
[356053972,1741866638461,-533.58146699,0.000279,2]
[356053973,1741866638472,-414.26349789,0.000279,2]
[356053974,1741866638484,-767.17518243,0.000279,2]
[356053975,1741866638494,-915.06501327,0.000279,2]
[356053976,1741866638506,-676.93498673,0.000279,2]
[356053977,1741866638515,-155.91,0.00027972,2]
[356053978,1741866638525,-155.91,0.00028069,2]
[356053979,1741866638535,-237.3202472,0.00028116,4]
[356053980,1741866638544,-168.49,0.00028116,2]
[356053981,1741866638554,-1348.0,0.00028124,2]
[356053982,1741866638563,-155.91,0.00028166,2]
[356053983,1741866638573,-155.91,0.00028264,2]
[356053984,1741866638582,-155.91,0.00028361,2]
[356053985,1741866638592,-1348.0,0.00028411,2]
[356053986,1741866638602,-155.91,0.00028458,2]
[356053987,1741866638612,-1296.963,0.00028495,20]
[356053988,1741866638622,-150.0,0.00028528,2]
[356053989,1741866638631,-150.0,0.00028554,2]
[356053990,1741866638641,-155.91,0.00028555,2]
[356053991,1741866638651,-200.0,0.00028556,2]
[356053992,1741866638660,-500.0,0.00028557,2]
[356053993,1741866638670,-150.0,0.00028563,2]
[356053994,1741866638680,-150.0,0.00028575,2]
[356053995,1741866638690,-149.46775547,0.00028578,2]
[356053997,1741866640080,-0.53224453,0.00028578,2]
[356053998,1741866640091,-150.0,0.00028582,2]
[356053999,1741866640100,-847.12532384,0.0002859,2]
[356054000,1741866640124,-32.22447616,0.0002859,2]
[356054001,1741866640133,-150.0,0.00028598,2]
[356054002,1741866640143,-150.0,0.00028599,2]
[356054003,1741866640152,-660.929,0.000286,2]
[356054004,1741866640161,-115.43419797,0.000286,2]
[356054005,1741866640173,-105.56580203,0.000286,2]
[356054006,1741866640182,-151.40829798,0.000286,2]
[356054007,1741866640193,-607.944495,0.000286,2]
[356054008,1741866640205,-3476.74960702,0.000286,2]
[356054009,1741866640214,-298.8855,0.000286,2]
[356054010,1741866640224,-397.1099,0.000286,2]
[356054011,1741866640234,-475.05,0.000286,31]
[356054012,1741866640243,-359.65999298,0.000286,31]
[356054013,1741866640254,-115.39000702,0.000286,31]
[356054014,1741866640263,-372.13556795,0.000286,31]
[356054015,1741866640275,-102.91443205,0.000286,31]
[356054016,1741866640284,-297.24294221,0.000286,31]
[356054017,1741866640296,-177.80705779,0.000286,31]
[356054018,1741866640305,-475.05,0.000286,31]
[356054019,1741866640314,-475.05,0.000286,31]
[356054020,1741866640324,-475.05,0.000286,31]
[356054021,1741866640334,-62.41086063,0.000286,31]
[356054022,1741866640345,-412.63913937,0.000286,31]
[356054023,1741866640354,-38.8440758,0.000286,31]
[356054024,1741866640367,-436.2059242,0.000286,31]
[356054025,1741866640376,-102.29203579,0.000286,31]
[356054026,1741866640448,-372.75796421,0.000286,31]
[356054027,1741866640458,-475.05,0.000286,31]